Cogmind - Beta 11.1 @@@ ROGUE MODE // 2022.06.24 @ 19:32:37 // Winter2019/RPGLIKE Player: Terminus Result: Destroyed by Y-45 Defender with Heavy Assault Rifle Performance ------------- Evolutions (1) 500 Regions Visited (3) 600 Robots Destroyed (39) 195 Value Destroyed (808) 808 Prototype IDs (4) 80 Alien Tech Used (0) 0 Bonus (0) 0 TOTAL SCORE: 2183 Bonus ------- None Cogmind --------- Core Integrity 0/600 Matter 295/300 Energy 265/265 System Corruption 0% Temperature Cool (6) Movement Walking (120) Location -9/Materials Parts ------- > --- POWER (1) -------- Improved Ion Engine > --- PROPULSION (3) --- Aluminum Leg Aluminum Leg Aluminum Leg > --- UTILITY (4) ------ Improved Heat Sink Power Shielding > --- WEAPON (3) ------- Mining Claw Mining Claw Mining Claw > --- INVENTORY (3) ---- Aluminum Leg Rocket Launcher Mining Claw Peak State ------------ > --- POWER ------------ Improved Ion Engine > --- PROPULSION ------- Aluminum Leg Aluminum Leg Aluminum Leg > --- UTILITY ---------- Heat Sink Power Shielding Decoy Drone Bay > --- WEAPON ----------- Mining Claw Mining Claw Mining Claw > --- INVENTORY -------- Rocket Launcher Mining Claw [Rating: 24] Favorites ----------- Power Improved Ion Engine Engine Improved Ion Engine Propulsion Aluminum Leg Treads Light Treads Leg Aluminum Leg Utility Heat Sink Device Heat Sink Protection Propulsion Shielding Weapon Mining Claw Energy Gun Small Laser Energy Cannon Beam Cannon Ballistic Gun Assault Rifle Launcher Rocket Launcher Slashing Weapon Mining Claw Build | -11 -10 -10 -9 ------- Run | Scr Mat Min Mat Slots Evolved 7 | 4 1 2 . Power . | . . . . Propulsion 2 | 1 . 1 . Utility 3 | 1 1 1 . Weapon 2 | 2 . . . Parts Attached 31 | 6 14 10 1 Power 5 | 2 3 . . Engine 5 | 2 3 . . Core . | . . . . Reactor . | . . . . Propulsion 9 | 2 3 3 1 Treads 2 | 2 . . . Leg 7 | . 3 3 1 Wheel . | . . . . Hover . | . . . . Flight . | . . . . Utility 7 | . 4 3 . Device 5 | . 3 2 . Storage . | . . . . Processor . | . . . . Hackware . | . . . . Protection 2 | . 1 1 . Artifact . | . . . . Weapon 10 | 2 4 4 . Energy Gun 1 | 1 . . . Energy Cannon 1 | . 1 . . Ballistic Gun 1 | 1 . . . Ballistic Cannon . | . . . . Launcher 2 | . . 2 . Special Weapon . | . . . . Impact Weapon . | . . . . Slashing Weapon 5 | . 3 2 . Piercing Weapon . | . . . . Special Melee Weapon . | . . . . Unidentified Prototypes 1 | . . 1 . Parts Lost 2 | . . 1 1 Power . | . . . . Propulsion . | . . . . Utility 2 | . . 1 1 Weapon . | . . . . Highest Loss Streak 1 | . . 1 1 To Critical Strikes . | . . . . Average Slot Usage (%) 92 | . 95 86 90 Engine 10 | . 11 9 9 Treads 6 | . 11 . . Leg 16 | . 11 23 27 Device 20 | . 22 18 18 Protection 5 | . 3 8 9 Energy Gun 3 | . 5 . . Energy Cannon 3 | . 5 . . Ballistic Gun 3 | . 5 . . Slashing Weapon 21 | . 18 26 27 Naked Turns . | . . . . Heaviest Build 18 | 8 16 18 16 Greatest Support 40 | 40 40 30 30 Greatest Overweight (x) 1 | 1 . . . Average Overweight (x) . | . . . . Largest Inventory Capacity 3 | . 2 2 3 Average Capacity 1 | . 1 2 2 Most Carried 3 | . 2 2 3 Average Carried 1 | . 1 2 2 Final Capacity 3 | . 2 2 3 Final Carried 3 | . 2 2 3 Class Distribution -------------------- 39% | Scavenger-Mutant 34% | Mutant 26% | Gunner Dominant Class ---------------- Gunner | -10/Materials Scavenger-Mutant | -10/Mines Scavenger-Mutant | -9/Materials Resources | -11 -10 -10 -9 ----------- Run | Scr Mat Min Mat Matter Collected 771 | 260 316 175 20 Remotely . | . . . . Salvage Created 1330 | . 1102 181 47 Parts 76 | . 57 16 3 Haulers Intercepted 2 | . 2 . . Recyclers Shooed 4 | . 4 . . Parts Field Recycled . | . . . . Retrieved Matter . | . . . . Parts Self-Destructed . | . . . . Prevented . | . . . . Kills | -11 -10 -10 -9 ------- Run | Scr Mat Min Mat Combat Hostiles Destroyed 35 | . 18 16 1 Melee 13 | . 6 6 1 Guns 4 | . 4 . . Cannons 8 | . 8 . . AOE 10 | . . 10 . Classes Destroyed 8 | . 6 2 . Worker 5 | . 2 3 . Hauler 2 | . 2 . . Recycler 4 | . 3 1 . Watcher 2 | . 2 . . Swarmer 9 | . 5 4 . Grunt 16 | . 13 2 1 Demolisher 1 | . . 1 . Assembled 9 | . . 9 . Best Kill Streak 9 | . 4 9 1 Combat Bots Only 9 | . 3 9 1 Max Kills in Single Turn 3 | . 1 3 1 Gunslinging . | . . . . Exploded 3 | . . 3 . Melee 1 | . 1 1 1 Uniques/NPCs Destroyed . | . . . . Combat | -11 -10 -10 -9 -------- Run | Scr Mat Min Mat Damage Taken 1519 | . 844 587 88 Core 1183 | . 663 447 73 Absorbed by Shields . | . . . . Redirected to Core 893 | . 495 346 52 Redirected to Shielding 56 | . 21 35 . Core Remaining (%) 55 | 100 . 11 . Volleys Fired 60 | . 53 7 . Largest 3 | . 3 1 . Hottest 120 | . 120 33 . Shots Fired 162 | . 155 7 . Gun 102 | . 102 . . Cannon 53 | . 53 . . Launcher 7 | . . 7 . Special . | . . . . Kinetic 53 | . 53 . . Thermal 102 | . 102 . . Explosive 7 | . . 7 . Electromagnetic . | . . . . Robot Hit Streak 7 | . 7 7 . Robot Miss Streak 5 | . 5 . . Penetration Max . | . . . . Secondary Targets . | . . . . Shots Hit Robots 136 | . 114 20 2 Core Hits 60 | . 36 23 1 Critical Kills . | . . . . Critical Parts Destroyed . | . . . . Critical Strikes . | . . . . Melee Attacks 71 | . 45 23 3 Impact . | . . . . Slashing 71 | . 45 23 3 Piercing . | . . . . Sneak Attacks 9 | . 4 4 1 Combat Hostiles 1 | . . . 1 Follow-up Attacks 13 | . 9 4 . Damage Inflicted 3173 | . 1935 1162 76 Guns 750 | . 750 . . Cannons 473 | . 473 . . Explosions 625 | . . 625 . Melee 1322 | . 709 537 76 Ramming 3 | . 3 . . Kinetic 456 | . 456 . . Thermal 767 | . 767 . . Explosive 625 | . . 625 . Electromagnetic . | . . . . Impact . | . . . . Slashing 1322 | . 709 537 76 Piercing . | . . . . Highest Corruption 2 | . 2 2 . Average Corruption 2 | . 2 2 . Corruption Purged . | . . . . Corruption Blocked . | . . . . Effects 21 | . 11 10 . Message Errors 9 | . 5 4 . Matter Fused 6 | . 3 3 . Heat Flow Errors 1 | . 1 . . Energy Discharges 3 | . 2 1 . Data Loss (minor) 2 | . . 2 . Overload Shots . | . . . . Overflow Damage 191 | . 76 115 . Projectiles 6 | . 6 . . Explosions 49 | . . 49 . Melee 136 | . 70 66 . Knockbacks . | . . . . Impact . | . . . . Kinetic . | . . . . Secondary . | . . . . Self-Inflicted Damage . | . . . . Shots . | . . . . Rammed 2 | . 2 . . Targets Rammed 2 | . 2 . . Kicked . | . . . . Crushed . | . . . . Highest Temperature 352 | . 352 . 3 Average Temperature 85 | . 86 . 3 Received Heat Transfer 348 | . 246 51 51 Siege Activations . | . . . . Robots Corrupted . | . . . . Combat Hostiles . | . . . . Parts Fried . | . . . . Impact Corruptions . | . . . . Robots Melted . | . . . . Combat Hostiles . | . . . . Parts Melted . | . . . . Heat Transferred 1674 | . 1674 . . Parts Sabotaged . | . . . . Parts Stolen . | . . . . Parts Stripped . | . . . . Power Chain Reactions . | . . . . Missiles Intercepted . | . . . . Alert | -11 -10 -10 -9 ------- Run | Scr Mat Min Mat Peak Influence 356 | . 302 356 142 Initial 91 | . . 73 91 Average 196 | . 212 203 115 Maximum Alert Level 1 | . 1 1 . Low Security (%) 46 | 100 37 46 100 Level 1 53 | . 62 53 . Level 2 . | . . . . Level 3 . | . . . . Level 4 . | . . . . Level 5 . | . . . . High Security . | . . . . Max Security . | . . . . Squads Dispatched 6 | . 4 . 2 Investigation 5 | . 3 . 2 Extermination . | . . . . Reinforcement 1 | . 1 . . Assault . | . . . . Garrison . | . . . . Intercept . | . . . . Searches Triggered . | . . . . Construction Impeded . | . . . . Haulers Reinforced . | . . . . Active Scanning Responses . | . . . . Cargo Convoy Interrupts . | . . . . Stealth | -11 -10 -10 -9 --------- Run | Scr Mat Min Mat Distress Signals 3 | . 2 . 1 Communications Jammed . | . . . . Distress Signals . | . . . . Times Spotted 49 | . 28 17 4 Peak Tracking Total 8 | . 4 8 5 Tactical Retreats . | . . . . Traps | -11 -10 -10 -9 ------- Run | Scr Mat Min Mat Traps Triggered 3 | . 3 . . Indirectly . | . . . . Trap Hack Attempts . | . . . . Triggered . | . . . . Disarmed . | . . . . Reprogrammed . | . . . . Reused . | . . . . Traps Extracted . | . . . . Installed . | . . . . Triggered . | . . . . Machines | -11 -10 -10 -9 ---------- Run | Scr Mat Min Mat Machines Disabled 3 | . 2 1 . Max in Single Turn 1 | . 1 1 . Machines Sabotaged . | . . . . Garrisons Compromised . | . . . . Overloaded Fab Kills . | . . . . Hacking | -11 -10 -10 -9 --------- Run | Scr Mat Min Mat Machines Accessed 9 | . 7 1 1 Terminals 6 | . 5 . 1 Fabricators . | . . . . Repair Stations . | . . . . Recycling Units 2 | . 2 . . Scanalyzers . | . . . . Garrison Access . | . . . . Total Hacks 23 | . 16 1 6 Successful 12 | . 9 1 2 Failed 11 | . 7 . 4 Catastrophic 2 | . . . 2 Database Lockouts . | . . . . Manual 17 | . 11 . 6 Terminals 20 | . 14 . 6 Fabricators . | . . . . Repair Stations . | . . . . Recycling Units 2 | . 2 . . Scanalyzers . | . . . . Garrison Access . | . . . . Terminal Hacks 7 | . 5 1 1 Robot Analysis 1 | . 1 . . Prototype ID Bank 1 | . 1 . . Open Door 1 | . . 1 . Terminal Index 1 | . . . 1 Alert Level 1 | . 1 . . Zone Layout 2 | . 2 . . Fabricator Hacks . | . . . . Repair Station Hacks . | . . . . Recycling Unit Hacks . | . . . . Scanalyzer . | . . . . Garrison Access Hacks . | . . . . Unauthorized Hacks 5 | . 4 . 1 Terminals 3 | . 2 . 1 Botnet 3 | . 2 . 1 Fabricators . | . . . . Repair Stations . | . . . . Recycling Units 2 | . 2 . . Tunnel 2 | . 2 . . Scanalyzers . | . . . . Garrison Access . | . . . . Data Cores Recovered . | . . . . Used . | . . . . Hacking Detections 6 | . 5 . 1 Full Trace Events 2 | . 1 . 1 Feedback Events . | . . . . Feedback Blocked . | . . . . Robot Schematics Acquired . | . . . . Robots Built . | . . . . Authchips . | . . . . Time . | . . . . Total Robot Build Rating . | . . . . Part Schematics Acquired . | . . . . Parts Built . | . . . . Authchips . | . . . . Time . | . . . . Total Part Build Rating . | . . . . Parts Repaired . | . . . . Time . | . . . . Parts Recycled . | . . . . Recycled Matter . | . . . . Retrieved Matter . | . . . . Retrieved Components . | . . . . Parts Scanalyzed . | . . . . Part Schematics Acquired . | . . . . Parts Damaged . | . . . . Bothacking | -11 -10 -10 -9 ------------ Run | Scr Mat Min Mat Used RIF Installer . | . . . . Robots Hacked . | . . . . Non-combat . | . . . . Combat . | . . . . Robot Hacks Applied . | . . . . Relay Couplers Released . | . . . . Fabnet Peak Effective % . | . . . . Robots Rewired . | . . . . Allies Hacked . | . . . . Hacks Repelled . | . . . . Allies | -11 -10 -10 -9 -------- Run | Scr Mat Min Mat Total Allies . | . . . . Largest Group . | . . . . Highest-Rated Group . | . . . . Highest-Rated Ally . | . . . . Total Orders . | . . . . Ally Attacks . | . . . . Total Damage . | . . . . Kills . | . . . . Allies Corrupted . | . . . . Allies Melted . | . . . . Intel | -11 -10 -10 -9 ------- Run | Scr Mat Min Mat Robot Analysis Total 1 | . 1 . . Derelict Logs Recovered 2 | . . 2 . Drone Launches . | . . . . Drone Recoveries . | . . . . Exploration | -11 -10 -10 -9 ------------- Run | Scr Mat Min Mat Turns Passed 2146 | 74 1275 674 123 Spaces Moved 1207 | 47 694 431 35 Core 10 | 10 . . . Treads 273 | 37 236 . . Legs 924 | . 458 431 35 Wheels . | . . . . Hover . | . . . . Flight . | . . . . Fastest Speed 50 | 50 120 120 120 Average Speed 128 | 140 133 120 120 Slowest Speed 160 | 160 160 120 120 Overloaded Moves . | . . . . Propulsion Burnouts . | . . . . Robots Hopped . | . . . . Cave-ins Triggered . | . . . . Exploration Rate (%) 48 | 3 94 91 5 Regions Visited 3 Branch Regions 1 Pre-discovered Areas 3 | . 2 1 . Known Exits Taken . | . . . . Unknown Exits Taken 3 | 1 1 1 . Scrap Searched 2 | . . 2 . Spaces Dug 22 | . . 22 . Terrain Destroyed 57 | . . 57 . Melee . | . . . . Projectile . | . . . . AOE 57 | . . 57 . Terrain Rammed . | . . . . Walls Destroyed . | . . . . Machines Disabled . | . . . . Actions | -11 -10 -10 -9 --------- Run | Scr Mat Min Mat Total 1554 | 53 848 542 111 Wait 163 | . 29 62 72 Move 1204 | 46 693 430 35 Hop . | . . . . Pick Up 2 | . 2 . . Fast Attach 21 | 5 12 4 . Attach . | . . . . Detach . | . . . . Swap 10 | 1 2 6 1 Drop 13 | 1 8 4 . Fire 60 | . 53 7 . Melee 53 | . 33 17 3 Ram . | . . . . Kick . | . . . . Crush 2 | . 2 . . Escape Stasis . | . . . . Rewire . | . . . . Trap . | . . . . Miscellaneous 26 | . 14 12 . Route ------- -11/Scrapyard -10/Materials (discovered 4 exits: *Mat x3 / *Min) -10/Mines (discovered 2 exits: *Mat x2) -9/Materials (discovered 1 exit: Mat) History --------- Turn | Location | Event 1 | -11/Scrapyard | Upgraded with Propulsion slot (x1) 1 | -11/Scrapyard | Upgraded with Utility slot (x1) 1 | -11/Scrapyard | Upgraded with Weapon slot (x2) 5 | -11/Scrapyard | Discovered new exit (range 15) 75 | -11/Scrapyard | Entered Materials 376 | -10/Materials | Build established: Gunner 524 | -10/Materials | Reached level 2 532 | -10/Materials | Upgraded with Utility slot (x1) 730 | -10/Materials | Discovered new exit (range 16) 814 | -10/Materials | Discovered new exit (range 16) 913 | -10/Materials | Core integrity fell below 50% 942 | -10/Materials | Build established: Scavenger-Mutant 1025 | -10/Materials | Discovered new exit (range 16) 1255 | -10/Materials | Build established: Mutant 1326 | -10/Materials | Discovered new exit (range 14) 1350 | -10/Materials | Entered Mines 1352 | -10/Mines | Reached level 3 1352 | -10/Mines | Upgraded with Propulsion slot (x1) 1352 | -10/Mines | Upgraded with Utility slot (x1) 1370 | -10/Mines | Received a Rocket Launcher from a helpful Derelict 1408 | -10/Mines | Learned location of Recycling (-7) 1711 | -10/Mines | Assembled infested the area 1761 | -10/Mines | Destroyed 9 combat bots 1788 | -10/Mines | Core integrity fell below 20% 1821 | -10/Mines | Learned location of 1 exit from Materials 1896 | -10/Mines | Build established: Scavenger-Mutant 1914 | -10/Mines | Discovered new exit (range 8) 1992 | -10/Mines | Discovered new exit (range 7) 2006 | -10/Mines | Found the Drone Emporium 2011 | -10/Mines | Found Prototype Device 2011 | -10/Mines | Identified Decoy Drone Bay 2024 | -10/Mines | Entered Materials 2025 | -9/Materials | Identified exit to Materials 2025 | -9/Materials | Core integrity fell below 50% 2025 | -9/Materials | Core integrity fell below 20% 2026 | -9/Materials | Reached level 4 2147 | -9/Materials | Destroyed by Y-45 Defender with Heavy Assault Rifle Last Messages --------------- 02026_ Upgraded: Inventory Capacity (+1) 02037_ Connecting with Terminal... 02037_ Current location identified: Materials >>Trojan(Botnet) Trojan loaded successfully. Testing... Terminal linked with 0 systems. Awaiting botnet instructions. >>Index(Terminals) Found 12 terminals. Downloaded coordinate data. 02040_ Connecting with Terminal... 02040_ ALERT: Suspicious activity at Terminal M003. Dispatching Investigation squad. 02077_ Sneak attack on G-34 Mercenary. 02077_ G-34 Mercenary destroyed. 02107_ Acquired 20 matter. 02126_ W-16 Scout sends out distress signal. 02144_ Heat Sink destroyed. 02144_ Critical hit (Burn: +37). Map ----- +----------------------------------------------------+ | ???????????????????????????????????? | | ???????????????????????????????????? | | ???????????????????????????????????? | | ???????????????????????????????????? | | ???????????????????????????????????? | | ???????????????????????????????????? | | ???????????????????????????????????? | | ???????????????????????????????????? | | ?????????????????###############???? | | ?????????????????# T # #???? | | ?????????????????# # #???? | | ?????????????????# #* #???? | | ?????????????????# """ """%+[ #???? | | ?????????????????# """ """ # #???? | | ?????????????????# """ """ # #???? | | ?????????????????# # #???? | | ?????????????????# # #???? | | ?????????????????########### #???? | | ???????????????????????????# #???? | | ???????????????????????????# #???? | | ???????????????????????????# #???? | | ???????????????????????????# #???? | | ??????????????????????????## ##??? | | ?????????????##########+### #??? | | ????????????# w #??? | | ????????????# g@ #??? | | ????????????# Y g #??? | | ???????????#T ########### #??? | | ??????????????????????????## ##??? | | ???????????????????????????# #???? | | ???????????????????????????# #???? | | ???????????????????????????# #???? | | ???????????????????????????? #???? | | ???????????????????????????? #???? | | ???????????????????????????? #???? | | ???????????????????????????? #???? | | ???????????????????????????? #???? | | ???????????????????????????? #???? | | ???????????????????????????? ????? | | ???????????????????????????????????? | | ???????????????????????????????????? | | ???????????????????????????????????? | | ???????????????????????????????????? | | ???????????????????????????????????? | | ???????????????????????????????????? | | ???????????????????????????????????? | | ???????????????????????????????????? | | ???????????????????????????????????? | | ???????????????????????????????????? | | ???????????????????????????????????? | +----------------------------------------------------+ Best States ------------- Heat Dissipation 59 Energy Generation 12 Energy Capacity 265 Matter Stores 300 Matter Capacity 300 Sight Range 16 Terrain Scan Density 10 Power Shielding 33 Propulsion Shielding 33 Evasion (%) 55 Recoil Reduction 2 Item Schematics ----------------- None Robot Schematics ------------------ None Fabricated ------------ Nothing Alien Tech Used ----------------- None Achievements -------------- None Challenges ------------ None RPGLIKE | -11 -10 -10 -9 --------- Run | Scr Mat Min Mat Levels Raised 3 | . 1 1 1 XP Earned 8905 | 3000 2800 1425 1680 XP Spent 6500 | 2300 1550 1900 750 Upgrades 10 | 4 3 2 1 Propulsion Slot 2 | 1 . 1 . Utility Slot 3 | 1 1 1 . Weapon Slot 2 | 2 . . . Inventory Capacity 3 | . 2 . 1 Protomatter Created 223 | . 133 90 . Integrity Restored 579 | . 309 270 . Core 579 | . 309 270 . Protomatter Decayed 46 | . 30 16 . Game ------ Seed ImpulseFusionLauncher Manual? 0 Play Time 00:11:39 Cumulative 1525.5 hours Start 2022.06.24 @ 19:21:29 End 2022.06.24 @ 19:32:37 Sessions 1 Manual Loads 0 Difficulty Rogue Special Mode Winter2019/RPGLIKE Game No. 537 Rogue 537 Adventurer 0 Explorer 0 Win Type - Total 108 Types 22/12/45/6/1/2/18/1/1 Lore% 97 Gallery% 97 Achievement% 86 Wizard Run 0 Options --------- ASCII 0 Keyboard 0 Movement Numpad Keybinds 0 Fullscreen 1 Font 18/SmallcapsGlow Map View 76x50 Tactical HUD 1 Map Filters NONE Filters NONE Steam 1 RUN: b0d59e63-02dc-4e24-b1fd-50f599dd71cf